bitfinex/quotes_BTCUSD_20230103
["timestamp","ask_amount","ask_price","bid_price","bid_amount"]
[1672761535648,0.00599233,16689.0,16688.0,3.4810769]
[1672761535908,0.00599233,16689.0,16688.0,3.5450769]
[1672761536290,0.00599233,16689.0,16688.0,4.75536756]
[1672761538065,0.00599233,16689.0,16688.0,4.4450769]
[1672761538558,0.00599233,16689.0,16688.0,5.0577199]
[1672761539336,0.00599233,16689.0,16688.0,4.80007176]
[1672761540168,0.00599233,16689.0,16688.0,4.6251769]
[1672761540357,0.00599233,16689.0,16688.0,5.2378199]
[1672761540608,0.00599233,16689.0,16688.0,5.57750235]
[1672761540852,0.00599233,16689.0,16688.0,5.2463199]
[1672761541114,0.00599233,16689.0,16688.0,4.6336769]
[1672761541356,0.00599233,16689.0,16688.0,5.01316743]
[1672761542881,0.63407976,16689.0,16688.0,3.44469743]
[1672761543133,1.42958891,16689.0,16688.0,3.44477117]
[1672761543392,2.13918175,16689.0,16688.0,3.44477117]
[1672761543642,2.13942247,16689.0,16688.0,3.44477117]
[1672761543908,2.13942197,16689.0,16688.0,2.78146543]
[1672761544152,2.14042197,16689.0,16688.0,2.78146543]
[1672761544411,2.13942197,16689.0,16688.0,2.78153917]
[1672761544662,1.52430397,16689.0,16688.0,2.78153917]
[1672761544925,1.78154179,16689.0,16688.0,2.18223343]
[1672761545206,2.14065619,16689.0,16688.0,2.78146543]
[1672761545455,2.14065619,16689.0,16688.0,2.78153917]
[1672761545982,1.52453819,16689.0,16688.0,2.78153917]
[1672761546248,1.08403209,16689.0,16688.0,4.52083119]
[1672761546566,1.08403209,16689.0,16688.0,4.28077117]
[1672761547017,1.08303209,16689.0,16688.0,4.28077117]
[1672761547275,1.08303209,16689.0,16688.0,4.34477117]
[1672761547520,1.08303209,16689.0,16688.0,4.28077117]
[1672761547829,1.08303209,16689.0,16688.0,4.42477117]
[1672761548309,0.63443369,16689.0,16688.0,4.42477117]
[1672761549099,1.08303209,16689.0,16688.0,4.42477117]
[1672761549363,0.63443369,16689.0,16688.0,4.42477117]
[1672761549875,0.63443369,16689.0,16688.0,4.60397117]
[1672761550137,0.45495662,16689.0,16688.0,5.21661417]
[1672761550403,0.45495662,16689.0,16688.0,4.60397117]
[1672761551168,0.00599233,16689.0,16688.0,5.01732364]
[1672761551419,0.18562966,16689.0,16688.0,5.34773726]
[1672761551822,0.18562966,16689.0,16688.0,5.02582364]
[1672761551977,0.18562966,16689.0,16688.0,5.35561864]
[1672761552221,0.18562966,16689.0,16688.0,4.74297564]
[1672761552720,0.18562966,16689.0,16688.0,5.02582364]
[1672761552968,0.18562966,16689.0,16688.0,4.80553391]
[1672761553226,0.45495662,16689.0,16688.0,4.80553391]
[1672761554010,0.18562966,16689.0,16688.0,5.02582364]
[1672761555031,0.18562966,16689.0,16688.0,4.72183122]
[1672761555277,0.18562966,16689.0,16688.0,5.33447422]
[1672761555524,0.18562966,16689.0,16688.0,4.72183122]
[1672761556555,0.45495662,16689.0,16688.0,4.72183122]
[1672761557575,0.45495662,16689.0,16688.0,5.33447422]
[1672761557823,0.45495662,16689.0,16688.0,4.72175765]
[1672761558574,0.45495662,16689.0,16688.0,5.33440065]
[1672761559487,0.18562966,16689.0,16688.0,5.33440065]
[1672761559636,0.18562966,16689.0,16688.0,5.02575007]
[1672761560138,0.18562966,16689.0,16688.0,5.31656562]
[1672761560391,0.18562966,16689.0,16688.0,4.70392262]
[1672761560641,0.45495662,16689.0,16688.0,4.70392262]
[1672761561671,0.45495662,16689.0,16688.0,4.52472262]
[1672761563706,0.45495662,16689.0,16688.0,3.82472262]
[1672761564206,0.45495662,16689.0,16688.0,3.53390707]
[1672761564463,0.18562966,16689.0,16688.0,4.41218762]
[1672761564733,0.00599233,16689.0,16688.0,4.91250707]
[1672761564984,0.00599233,16689.0,16688.0,5.52515007]
[1672761566228,0.00599233,16689.0,16688.0,5.82469007]
[1672761566733,0.00599233,16689.0,16688.0,6.1771942]
[1672761567088,0.00599233,16689.0,16688.0,5.82469007]
[1672761567737,0.00599233,16689.0,16688.0,6.12469007]
[1672761567987,0.00599233,16689.0,16688.0,7.83393804]
[1672761568234,0.00599233,16689.0,16688.0,8.10309168]
[1672761568483,0.01217259,16691.0,16689.0,0.5]
[1672761568725,0.01217259,16691.0,16690.0,5.06922586]
[1672761568970,0.19180992,16691.0,16690.0,5.68178886]
[1672761569213,0.19780154,16691.0,16690.0,5.68178886]
[1672761569509,0.4671285,16691.0,16690.0,5.6817179]
[1672761569753,0.4671285,16691.0,16690.0,5.50148886]
[1672761570029,0.4681285,16691.0,16690.0,6.38038886]
[1672761570285,0.4681285,16691.0,16690.0,5.37992088]
[1672761570838,0.64660557,16691.0,16690.0,4.78075988]
[1672761571053,0.82620093,16691.0,16690.0,4.78075988]
[1672761571313,0.82720091,16691.0,16690.0,4.78075988]
[1672761571571,0.46708651,16691.0,16690.0,4.78075988]
[1672761571827,0.46708651,16691.0,16690.0,4.92075988]
[1672761574124,0.82620091,16691.0,16690.0,4.92075988]
[1672761574396,0.64660557,16691.0,16690.0,4.92075988]
[1672761574739,0.64660557,16691.0,16690.0,4.30819688]
[1672761574896,0.46708154,16691.0,16690.0,4.32941137]
[1672761575406,0.19775458,16691.0,16690.0,4.32941137]
[1672761575700,0.19775458,16691.0,16690.0,4.99859792]
[1672761576211,0.46708154,16691.0,16690.0,4.99859792]
[1672761576734,0.19775458,16691.0,16690.0,4.99859792]
[1672761578247,0.46708154,16691.0,16690.0,4.99859792]
[1672761578593,0.19775458,16691.0,16690.0,4.99859792]
[1672761579256,0.46708154,16691.0,16690.0,4.99859792]
[1672761579777,0.64660557,16691.0,16690.0,4.38603692]
[1672761580021,0.64660557,16691.0,16690.0,4.20583692]
[1672761580277,0.64660557,16691.0,16690.0,4.19733692]
[1672761580528,0.64660557,16691.0,16690.0,3.81996486]
[1672761580780,0.46707354,16691.0,16690.0,4.79375432]
[1672761581753,0.19774658,16691.0,16690.0,4.79375432]
[1672761583812,0.19774658,16691.0,16690.0,4.43252586]
[1672761584054,0.19774658,16691.0,16690.0,4.76389581]
[1672761584566,0.46707354,16691.0,16690.0,4.76389581]
[1672761584838,0.46707354,16691.0,16690.0,4.43252586]
[1672761585612,0.46707354,16691.0,16690.0,4.79288024]
[1672761586107,0.19774658,16691.0,16690.0,4.43252586]
[1672761586377,0.01816421,16691.0,16690.0,4.61982586]
[1672761587136,0.01816421,16691.0,16690.0,5.37749867]
[1672761587405,0.01816421,16691.0,16690.0,6.45989867]
[1672761587662,0.01816421,16691.0,16690.0,6.63934968]
[1672761588418,0.01816421,16691.0,16690.0,7.03934968]
[1672761590065,0.01816421,16691.0,16690.0,5.95834968]
[1672761590491,0.01816421,16691.0,16690.0,5.77889867]
[1672761590749,0.01816421,16691.0,16690.0,5.95834968]
[1672761591357,0.01816421,16691.0,16690.0,6.22750332]
[1672761592602,0.01816421,16691.0,16690.0,5.95834968]
[1672761593105,0.0180692,16691.0,16690.0,5.95834968]
[1672761593630,0.0180692,16691.0,16690.0,5.77889867]
[1672761594144,0.00945611,16691.0,16690.0,5.77889867]
[1672761597522,0.24951613,16691.0,16690.0,5.29859867]
[1672761597942,0.00945611,16691.0,16690.0,5.01272586]
[1672761598370,0.00945611,16691.0,16690.0,5.30178728]
[1672761599161,0.00945611,16691.0,16690.0,5.31028728]
[1672761599417,0.00945611,16691.0,16690.0,5.28911922]
[1672761599674,0.00945611,16691.0,16690.0,5.02122586]
[1672761599946,0.00945611,16691.0,16690.0,5.38776848]
[1672761600499,0.00945611,16691.0,16690.0,5.30246625]
[1672761600760,0.00945611,16691.0,16690.0,5.02122586]
[1672761602084,0.00945611,16691.0,16690.0,4.62122586]
[1672761602862,0.00945611,16691.0,16690.0,4.89048786]
[1672761603142,0.00945611,16691.0,16690.0,4.62122586]
[1672761603936,0.00945611,16691.0,16690.0,4.8875713]
[1672761604188,0.00945611,16691.0,16690.0,5.1875713]
[1672761604992,0.00945611,16691.0,16690.0,4.3700348]
[1672761606235,0.00945611,16691.0,16690.0,4.36929776]
[1672761607030,0.00945611,16691.0,16690.0,4.66929776]
[1672761607270,0.00945611,16691.0,16690.0,3.45338799]
[1672761607520,0.00945611,16691.0,16690.0,2.96922028]
[1672761607769,0.00945611,16691.0,16690.0,4.37393793]
[1672761608797,0.86511931,16692.0,16691.0,0.5]
[1672761608798,0.8279704,16692.0,16691.0,0.5]
[1672761609050,0.37591419,16692.0,16691.0,4.17452497]
[1672761609315,0.37591419,16692.0,16691.0,4.87452497]
[1672761609621,1.01008926,16692.0,16691.0,3.09205942]
[1672761609832,0.45474598,16692.0,16691.0,0.7]
[1672761610090,1.07086398,16692.0,16691.0,1.07158283]
[1672761610344,1.06586398,16692.0,16691.0,1.07158283]
[1672761610589,1.06586398,16692.0,16691.0,1.57227337]
[1672761610879,1.06586398,16692.0,16691.0,1.71627337]
[1672761611120,0.80880664,16692.0,16691.0,1.71627337]
[1672761611894,0.44974598,16692.0,16691.0,1.71627337]
[1672761612413,1.06586398,16692.0,16691.0,1.71627337]
[1672761613184,0.44974598,16692.0,16691.0,1.71627337]
[1672761614483,0.44974598,16692.0,16691.0,2.31539837]
[1672761615272,0.44974598,16692.0,16691.0,1.93199197]
[1672761615530,0.35758895,16692.0,16691.0,1.443125]
[1672761615793,0.97370695,16692.0,16691.0,1.93219372]
[1672761616048,0.62210926,16692.0,16691.0,1.9320832]
[1672761616304,0.00599126,16692.0,16691.0,1.9320832]
[1672761616831,0.34385098,16692.0,16691.0,0.844]
[1672761617086,0.95996898,16692.0,16691.0,0.844]
[1672761617570,2.59825418,16692.0,16691.0,0.844]
[1672761618866,2.09756364,16692.0,16691.0,0.844]
[1672761619122,2.09756364,16692.0,16691.0,0.7]
[1672761619901,2.09756364,16692.0,16691.0,1.18892469]
[1672761620146,2.10456364,16692.0,16691.0,0.7]
[1672761620669,1.56605798,16692.0,16691.0,0.7]
[1672761620927,2.28376364,16692.0,16691.0,0.7]
[1672761622690,2.24594852,16692.0,16691.0,0.7]
[1672761622950,2.28376364,16692.0,16691.0,0.7]
[1672761623238,2.78445418,16692.0,16691.0,0.7]
[1672761623484,2.60525418,16692.0,16691.0,0.7]
[1672761624010,2.26739446,16692.0,16691.0,0.7]
[1672761624263,2.88534732,16692.0,16691.0,0.7]
[1672761624508,2.9227092,16692.0,16691.0,0.7]
[1672761625518,2.60667626,16692.0,16691.0,0.7]
[1672761625782,2.90667626,16692.0,16691.0,0.7]
[1672761626029,3.83358492,16692.0,16691.0,0.7]
[1672761626284,3.83358492,16692.0,16689.0,0.50069054]
[1672761626533,1.09774486,16691.0,16690.0,0.7]
[1672761626779,2.67190946,16691.0,16690.0,0.7]
[1672761627286,2.41186146,16691.0,16690.0,0.7]
[1672761627556,3.02797946,16691.0,16690.0,0.7]
[1672761627787,3.02797946,16691.0,16690.0,0.081]
[1672761628051,2.72797946,16691.0,16690.0,0.081]
[1672761628301,2.1902826,16691.0,16690.0,0.58169054]
[1672761628550,2.63828791,16691.0,16690.0,0.50069054]
[1672761628930,2.02216991,16691.0,16690.0,0.7]
[1672761629328,2.63828791,16691.0,16690.0,1.20069054]
[1672761629585,2.02216991,16691.0,16690.0,0.7]
[1672761629832,2.63828791,16691.0,16690.0,1.6]
[1672761630089,2.02216991,16691.0,16690.0,1.6]
[1672761630336,1.5741646,16691.0,16690.0,1.6]
[1672761630588,2.03816334,16691.0,16690.0,1.602]
[1672761631106,2.03816334,16691.0,16690.0,2.10269054]
[1672761631599,2.03816334,16691.0,16690.0,1.60191423]
[1672761632091,1.5901646,16691.0,16690.0,1.60191423]
[1672761632331,2.07775361,16691.0,16690.0,1.60191423]
[1672761632831,2.19771407,16691.0,16690.0,1.60191423]
[1672761633334,2.07774673,16691.0,16690.0,1.60191423]
[1672761633593,2.73541093,16691.0,16690.0,1.60191423]
[1672761633837,3.23156159,16691.0,16690.0,1.60191423]
[1672761634086,2.73541093,16691.0,16690.0,1.60191423]
[1672761634336,2.19771407,16691.0,16690.0,1.60191423]
[1672761634588,2.73541093,16691.0,16690.0,1.60191423]
[1672761634853,2.11929293,16691.0,16690.0,1.60191423]
[1672761635608,2.61998347,16691.0,16690.0,1.60191423]
[1672761636110,3.23610147,16691.0,16690.0,1.60191423]
[1672761636872,2.73541093,16691.0,16690.0,1.60191423]
[1672761637120,2.73541093,16691.0,16690.0,0.902]
[1672761637639,3.50517472,16691.0,16690.0,0.902]
[1672761638405,3.14382027,16691.0,16690.0,0.902]
[1672761638943,3.50461715,16691.0,16690.0,0.902]
[1672761641967,3.99184516,16691.0,16690.0,0.902]
[1672761642475,3.99184516,16691.0,16689.0,0.4975726]
[1672761642775,0.86396045,16690.0,16688.0,1.18587764]
[1672761642985,1.42320445,16689.0,16688.0,1.18587764]
[1672761643240,1.42919607,16689.0,16688.0,1.53050448]
[1672761643496,0.81307807,16689.0,16688.0,1.53050448]
[1672761643769,1.42919607,16689.0,16688.0,1.53050448]
[1672761644137,0.81307807,16689.0,16688.0,1.03050448]
[1672761644284,0.81307807,16689.0,16688.0,1.10950448]
[1672761644542,1.42919607,16689.0,16688.0,1.03050448]
[1672761644814,0.45637298,16689.0,16688.0,1.03050448]
[1672761645074,0.45437298,16689.0,16688.0,1.04537764]
[1672761645346,0.45437298,16689.0,16688.0,0.86617764]
[1672761645595,0.81522416,16689.0,16688.0,0.86617764]
[1672761645856,0.81522416,16689.0,16688.0,1.20360813]
[1672761646112,0.45654136,16689.0,16688.0,2.42296815]
[1672761646364,0.45654136,16689.0,16688.0,3.98060413]
[1672761646633,0.45654136,16689.0,16688.0,3.9807128]
[1672761646875,0.45454136,16689.0,16688.0,3.9807128]
[1672761647131,0.45454136,16689.0,16688.0,4.0597128]
[1672761647375,0.45454136,16689.0,16688.0,3.9807128]
[1672761647625,0.45554136,16689.0,16688.0,4.1117128]
[1672761647888,0.45554136,16689.0,16688.0,4.7243558]
[1672761648626,0.81439254,16689.0,16688.0,4.1117128]
[1672761649654,0.81457008,16689.0,16688.0,4.1117128]
[1672761649906,0.4557189,16689.0,16688.0,4.7243558]
[1672761650620,0.81460143,16689.0,16688.0,4.7243558]
[1672761651126,0.63497155,16689.0,16688.0,4.11160413]
[1672761652899,0.63497155,16689.0,16688.0,4.72424713]
[1672761653636,0.63497155,16689.0,16688.0,4.1117128]
[1672761654131,0.63497155,16689.0,16688.0,4.7243558]
[1672761654883,0.63497155,16689.0,16688.0,4.72424713]
[1672761655134,0.63497155,16689.0,16688.0,4.11160413]
[1672761656183,0.63497155,16689.0,16688.0,4.72424713]
[1672761657470,0.63497155,16689.0,16688.0,4.11160413]
[1672761658473,0.81422416,16689.0,16688.0,4.11160413]
[1672761658717,0.63544348,16689.0,16688.0,4.11160413]
[1672761659495,0.81422416,16689.0,16688.0,4.11160413]
[1672761661013,0.81422416,16689.0,16688.0,4.1117128]
[1672761661839,0.45537298,16689.0,16688.0,4.11160413]
[1672761662053,0.45537298,16689.0,16688.0,4.1117128]
[1672761662553,0.45537298,16689.0,16688.0,4.11160413]
[1672761663097,0.00699162,16689.0,16688.0,4.1117128]
[1672761663311,0.00699162,16689.0,16688.0,4.11160413]
[1672761664062,0.00699162,16689.0,16688.0,4.1117128]
[1672761664304,0.00699162,16689.0,16688.0,4.11160413]
[1672761665030,0.00699162,16689.0,16688.0,4.11151941]
[1672761665279,0.86093525,16689.0,16688.0,2.19574164]
[1672761665530,1.47705325,16689.0,16688.0,2.19585031]
[1672761665787,1.16080648,16689.0,16688.0,2.19574164]
[1672761666032,0.00699162,16689.0,16688.0,2.19574164]
[1672761668561,0.62310962,16689.0,16688.0,2.19574164]
[1672761668819,0.62310962,16689.0,16688.0,2.52106698]
[1672761669076,0.95453543,16689.0,16688.0,2.52106698]
[1672761669316,1.49223229,16689.0,16688.0,2.52106698]
[1672761670555,1.16080648,16689.0,16688.0,2.52117565]
[1672761670811,1.16080648,16689.0,16688.0,2.52106698]
[1672761671818,1.43975272,16689.0,16688.0,1.090232]
[1672761672076,1.43975272,16689.0,16688.0,0.491]
[1672761672344,1.36869599,16689.0,16688.0,0.491]
[1672761672613,1.36869599,16689.0,16688.0,0.131]
[1672761673392,0.90205586,16689.0,16688.0,0.131]
[1672761674400,0.90105586,16689.0,16687.0,0.98787751]
[1672761674690,0.53908939,16688.0,16687.0,0.98787751]
[1672761674943,0.53908939,16689.0,16687.0,3.47264964]
[1672761675202,0.56708939,16689.0,16688.0,2.45230175]
[1672761675464,0.80858156,16689.0,16688.0,4.24799775]
[1672761675728,1.11209137,16689.0,16688.0,4.24799775]
[1672761676225,0.66287443,16689.0,16688.0,4.24799775]
[1672761676742,0.63487443,16689.0,16688.0,4.24799775]
[1672761676999,0.63687443,16689.0,16688.0,5.32849775]
[1672761677258,0.81454753,16689.0,16688.0,5.32849775]
[1672761677509,0.81654696,16689.0,16688.0,5.44949775]
[1672761677757,0.63687443,16689.0,16688.0,5.44949775]
[1672761680048,0.63687443,16689.0,16688.0,4.36899775]
[1672761681525,0.63687443,16689.0,16688.0,3.75635175]
[1672761682033,0.81657389,16689.0,16688.0,3.75635175]
[1672761682335,0.81657389,16689.0,16688.0,4.36899475]
[1672761682591,0.81657389,16689.0,16688.0,3.75635175]
[1672761686388,0.45720927,16689.0,16688.0,3.75635175]
[1672761687159,0.45720927,16689.0,16688.0,2.47691975]
[1672761687415,0.00799233,16689.0,16688.0,1.27845575]
[1672761687682,0.00799233,16689.0,16688.0,1.87768775]
[1672761688224,0.00799233,16689.0,16688.0,1.27845575]
[1672761688482,0.00799233,16689.0,16688.0,0.80676318]
[1672761688726,1.51782188,16689.0,16688.0,0.3006]
[1672761689781,1.51782188,16689.0,16688.0,0.899832]
[1672761690015,0.54708172,16689.0,16688.0,1.40610964]
[1672761690271,0.87801089,16689.0,16688.0,1.40610964]
[1672761694434,0.87601089,16689.0,16688.0,1.28510964]
[1672761694719,1.49212889,16689.0,16688.0,1.30310964]
[1672761695919,1.16119972,16689.0,16688.0,1.30403739]
[1672761696165,1.16119972,16689.0,16688.0,1.30310964]
[1672761698244,1.16119972,16689.0,16688.0,0.796832]
[1672761698761,0.62211033,16689.0,16688.0,0.796832]
[1672761699011,1.16111266,16689.0,16688.0,1.30310964]
[1672761700318,1.16111266,16689.0,16688.0,0.70387764]
[1672761700835,1.16111266,16689.0,16688.0,0.1976]
[1672761701370,1.16111266,16689.0,16688.0,0.70387764]
[1672761701882,0.96964394,16689.0,16688.0,0.1976]
[1672761702138,2.00204462,16689.0,16688.0,0.018]
[1672761702389,0.96964394,16689.0,16688.0,0.018]
[1672761702649,1.39703831,16689.0,16688.0,0.018]
[1672761702899,1.99623531,16689.0,16687.0,0.50627764]
[1672761703154,2.02369051,16689.0,16688.0,0.702]
[1672761703405,2.63372985,16689.0,16688.0,0.002]
[1672761703665,2.63972218,16689.0,16688.0,0.002]
[1672761703943,2.21241414,16689.0,16688.0,0.002]
[1672761704432,1.60684094,16689.0,16688.0,0.002]
[1672761704704,2.21241414,16689.0,16688.0,0.002]
[1672761704955,1.60684094,16689.0,16688.0,0.002]
[1672761705945,2.21241414,16689.0,16688.0,0.002]
[1672761706453,2.01655708,16689.0,16688.0,0.002]
[1672761706694,1.60684094,16689.0,16688.0,0.002]
[1672761709073,2.11311858,16689.0,16688.0,0.002]
[1672761709782,2.11311858,16689.0,16688.0,0.00188491]
[1672761711303,1.60684094,16689.0,16688.0,0.00188491]
[1672761711853,2.11311858,16689.0,16688.0,0.00188491]
[1672761716554,1.60684094,16689.0,16688.0,0.00188491]
[1672761718925,2.21241414,16689.0,16688.0,0.00188491]
[1672761719520,2.81161114,16689.0,16688.0,0.00188491]
[1672761720542,2.21241414,16689.0,16688.0,0.00188491]
[1672761721059,1.60684094,16689.0,16688.0,0.00188491]
[1672761721306,2.21241414,16689.0,16688.0,0.00188491]
[1672761721821,1.25930733,16689.0,16688.0,0.39067493]
[1672761722088,1.25930733,16689.0,16688.0,0.89695257]
[1672761722838,0.66011033,16689.0,16688.0,0.89695257]
[1672761724128,0.66011033,16689.0,16688.0,1.59695257]
[1672761724680,0.04399233,16689.0,16688.0,1.59695257]
[1672761724913,0.3667746,16689.0,16688.0,1.20816255]
[1672761726008,1.5884658,16689.0,16688.0,1.20816255]
[1672761726461,1.5884658,16689.0,16688.0,0.70188491]
[1672761726706,1.5884658,16689.0,16688.0,1.20816255]
[1672761727235,1.5884658,16689.0,16688.0,0.70188491]
[1672761728604,1.5884658,16689.0,16688.0,0.00188491]
[1672761730512,1.5884658,16689.0,16688.0,0.50816255]
[1672761731741,2.1876628,16689.0,16688.0,0.50816255]
[1672761731954,2.1876628,16689.0,16688.0,0.00188491]
[1672761732187,2.1876628,16689.0,16688.0,0.50816255]
[1672761732471,2.1876628,16689.0,16688.0,0.50805783]
[1672761732977,2.1876628,16689.0,16688.0,1.20805783]
[1672761733249,1.5715448,16689.0,16688.0,1.20805783]
[1672761733499,0.9659716,16689.0,16688.0,1.20805783]
[1672761734211,1.5715448,16689.0,16688.0,1.20805783]
[1672761735232,0.9723478,16689.0,16688.0,1.20805783]
[1672761738938,1.5884658,16689.0,16688.0,0.50805783]
[1672761739437,0.66011033,16689.0,16688.0,0.50805783]
[1672761739986,0.66011033,16689.0,16688.0,1.02680183]
[1672761740225,0.04399233,16689.0,16688.0,1.02680183]
[1672761741713,0.04399233,16689.0,16688.0,1.29380317]
[1672761742210,0.04399233,16689.0,16688.0,1.65250317]
[1672761742457,0.04399233,16689.0,16688.0,2.25173517]
[1672761742458,0.58363046,16689.0,16688.0,2.25173517]
[1672761743254,0.58363046,16689.0,16688.0,2.85096717]
[1672761743508,0.58363046,16689.0,16688.0,3.45019917]
[1672761745584,0.04399233,16689.0,16688.0,3.45019917]
[1672761747848,0.04399233,16689.0,16688.0,2.85096717]
[1672761751156,0.58363046,16689.0,16688.0,2.85096717]
[1672761751557,0.58363046,16689.0,16688.0,1.65250317]
[1672761751705,0.88890064,16689.0,16688.0,1.32748153]
[1672761751955,0.88890064,16689.0,16688.0,1.47434512]
[1672761751956,1.50501864,16689.0,16688.0,1.47434512]
[1672761752980,0.96538051,16689.0,16688.0,1.47434512]
[1672761753501,0.96538051,16689.0,16688.0,0.77434512]
[1672761754505,0.96538051,16689.0,16688.0,0.77427792]
[1672761755257,2.07085515,16689.0,16688.0,0.00171299]
[1672761756283,2.67005215,16689.0,16688.0,0.00171299]
[1672761757314,2.97005215,16689.0,16688.0,0.00171299]
[1672761760351,3.56924915,16689.0,16688.0,0.00171299]
[1672761761357,4.45877405,16689.0,16688.0,0.00171299]
[1672761762636,4.15350387,16689.0,16688.0,0.00171299]
[1672761762899,4.52489404,16689.0,16688.0,0.00171299]
[1672761765702,4.22489404,16689.0,16688.0,0.00171299]
[1672761765946,4.52489404,16689.0,16688.0,0.00171299]
[1672761767421,4.24150494,16689.0,16688.0,0.00171299]
[1672761767728,5.13102984,16689.0,16688.0,0.00171299]
[1672761767979,5.1310147,16689.0,16688.0,0.00171299]
[1672761768735,4.8310147,16689.0,16688.0,0.00171299]
[1672761769041,3.43521216,16689.0,16688.0,0.00171299]
[1672761770306,3.9414898,16689.0,16688.0,0.00171299]
[1672761771562,4.2414898,16689.0,16688.0,0.00171299]
[1672761771837,5.1310147,16689.0,16688.0,0.00171299]
[1672761772069,4.52489404,16689.0,16688.0,0.00171299]
[1672761772327,3.94145602,16689.0,16688.0,0.00171299]
[1672761773345,3.63536914,16689.0,16688.0,0.00171299]
[1672761773613,4.72489404,16689.0,16688.0,0.00171299]
[1672761773858,5.33096277,16689.0,16688.0,0.00171299]
[1672761774416,5.33096277,16689.0,16688.0,0.00159308]
[1672761774611,4.72489404,16689.0,16688.0,0.00159308]
[1672761775121,4.52489404,16689.0,16688.0,0.00159308]
[1672761775372,4.2414846,16689.0,16688.0,0.00159308]
[1672761775615,5.1310095,16689.0,16688.0,0.00159308]
[1672761776621,4.52489404,16689.0,16688.0,0.00159308]
[1672761779817,4.0186164,16689.0,16688.0,0.00159308]
[1672761780060,3.43516972,16689.0,16688.0,0.00159308]
[1672761780312,3.60627131,16689.0,16688.0,0.00159308]
[1672761780577,3.43516972,16689.0,16688.0,0.00159308]
[1672761781874,2.83597272,16689.0,16688.0,0.00159308]
[1672761782924,3.22930197,16689.0,16688.0,0.00159308]
[1672761783240,3.82849897,16689.0,16688.0,0.00159308]
[1672761783441,3.52242075,16689.0,16688.0,0.00159308]
[1672761783698,4.91194565,16689.0,16688.0,0.00159308]
[1672761785527,3.7186164,16689.0,16688.0,0.00159308]
[1672761785808,3.82902671,16689.0,16688.0,0.00159308]
[1672761786026,4.71855161,16689.0,16688.0,0.00159308]
[1672761786286,3.82902671,16689.0,16688.0,0.00159308]
[1672761786539,3.82900376,16689.0,16688.0,0.00159308]
[1672761786791,3.52258892,16689.0,16688.0,0.00159308]
[1672761787054,4.41211382,16689.0,16688.0,0.00159308]
[1672761789625,3.52258892,16689.0,16688.0,0.00159308]
[1672761789869,4.91211382,16689.0,16688.0,0.00159308]
[1672761791662,4.02258892,16689.0,16688.0,0.00159308]
[1672761791919,4.91211382,16689.0,16688.0,0.00159308]
[1672761795324,4.91211382,16689.0,16688.0,0.00150101]
[1672761800672,0.88579125,16688.0,16687.0,0.5060764]
[1672761800926,4.22728179,16688.0,16686.0,0.97614884]
[1672761801180,1.22334453,16687.0,16686.0,0.97614884]
[1672761801441,1.22933686,16687.0,16686.0,1.67614884]
[1672761801955,1.82860486,16687.0,16686.0,1.38557764]
[1672761802200,1.8285995,16687.0,16686.0,0.8793]
[1672761802526,1.8285995,16687.0,16686.0,0.68557764]
[1672761802750,1.22137833,16687.0,16686.0,0.70157764]
[1672761803006,1.22137833,16687.0,16686.0,0.68557764]
[1672761803272,1.83058006,16687.0,16686.0,0.78757764]
[1672761803525,1.82858006,16687.0,16686.0,0.68557764]
[1672761803793,1.86758006,16687.0,16686.0,0.68857764]
[1672761804563,1.22137833,16687.0,16686.0,0.68557764]
[1672761805576,2.99648532,16687.0,16686.0,0.016]
[1672761806108,3.88601022,16687.0,16686.0,0.016]
[1672761806371,3.88601022,16687.0,16686.0,0.019]
[1672761806372,3.03548532,16687.0,16686.0,0.019]
[1672761806621,2.99648532,16687.0,16685.0,0.0034126]
[1672761806881,3.01763532,16687.0,16686.0,0.008]
[1672761807157,3.62776099,16687.0,16686.0,0.008]
[1672761807415,4.51728589,16687.0,16686.0,0.008]
[1672761807704,4.52327894,16687.0,16686.0,0.008]
[1672761808224,3.63375404,16687.0,16686.0,0.008]
[1672761808486,4.48527894,16687.0,16685.0,0.0034126]
[1672761808776,1.36632564,16686.0,16685.0,0.0114126]
[1672761809248,3.17023069,16686.0,16685.0,0.0034126]
[1672761810017,3.56177892,16686.0,16685.0,0.0034126]
[1672761810270,3.59977892,16686.0,16685.0,0.0114126]
[1672761811826,3.79977892,16686.0,16685.0,0.0114126]
[1672761812582,3.59977892,16686.0,16685.0,0.0114126]
[1672761814348,3.59977892,16686.0,16684.0,0.00221576]
[1672761814599,1.73475261,16685.0,16684.0,0.00221576]
[1672761814836,3.84036313,16685.0,16684.0,0.00221576]
[1672761815087,4.14036313,16685.0,16684.0,0.00221576]
[1672761815881,3.68008549,16685.0,16684.0,0.01021576]
[1672761818381,3.37249497,16685.0,16684.0,0.01021576]
[1672761818645,3.37224263,16685.0,16684.0,0.01021576]
[1672761818898,3.27240869,16685.0,16684.0,0.01021576]
[1672761819148,3.71026072,16685.0,16684.0,0.01021576]
[1672761819646,4.59978562,16685.0,16684.0,0.01021576]
[1672761822334,0.84421239,16684.0,16682.0,0.00293285]
[1672761822571,3.77032183,16683.0,16682.0,0.00293285]
[1672761822836,3.77631488,16683.0,16682.0,0.00293285]
[1672761823357,3.17055469,16683.0,16682.0,0.00293285]
[1672761823828,3.77631488,16683.0,16682.0,0.00293285]
[1672761824597,3.17055469,16683.0,16682.0,0.00293285]
[1672761825068,3.22355469,16683.0,16682.0,0.01093285]
[1672761825321,3.4810383,16683.0,16682.0,0.00293285]
[1672761825572,3.5340383,16683.0,16682.0,0.01093285]
[1672761828097,4.13979849,16683.0,16682.0,0.01093285]
[1672761830418,0.0017916,16681.0,16680.0,0.18648131]
[1672761830684,3.16124068,16681.0,16680.0,0.18648131]
[1672761830917,3.76671773,16681.0,16680.0,0.18648131]
[1672761831191,3.26044009,16681.0,16680.0,0.18648131]
[1672761831442,3.76671773,16681.0,16680.0,0.00478131]
[1672761831688,3.82671773,16681.0,16680.0,0.01178131]
[1672761833466,4.1816212,16681.0,16680.0,0.01178131]
[1672761833715,3.67534356,16681.0,16680.0,0.01178131]
[1672761833978,3.67534356,16681.0,16680.0,0.19098131]
[1672761834985,3.91540358,16681.0,16680.0,0.19098131]
[1672761835243,3.13725812,16681.0,16680.0,0.01178131]
[1672761835453,3.64353576,16681.0,16680.0,0.01178131]
[1672761836456,4.18141802,16681.0,16680.0,0.01178131]
[1672761836716,4.18141802,16681.0,16680.0,0.78030576]
[1672761836717,3.37514038,16681.0,16680.0,0.78030576]
[1672761836972,2.23777412,16681.0,16680.0,0.54024574]
[1672761837230,1.63829012,16681.0,16680.0,0.71904574]
[1672761837487,0.51604541,16681.0,16680.0,0.89934574]
[1672761837998,0.87463787,16681.0,16680.0,0.89934574]
[1672761838252,0.69531371,16681.0,16680.0,1.49886574]
[1672761838525,0.33672125,16681.0,16680.0,1.65070131]
[1672761838772,0.24710585,16681.0,16680.0,3.26328642]
[1672761839281,0.24710585,16681.0,16680.0,4.26465325]
[1672761839803,0.24710585,16681.0,16680.0,3.65168425]